bitfinex/quotes_BTCUSD_20240730
["timestamp","ask_amount","ask_price","bid_price","bid_amount"]
[1722355226092,1.56309726,66349.0,66348.0,0.000913]
[1722355226476,1.55369833,66349.0,66348.0,0.001913]
[1722355226680,1.56309723,66349.0,66348.0,0.001913]
[1722355226888,1.62295173,66349.0,66348.0,0.001913]
[1722355227104,1.26166123,66349.0,66348.0,0.001913]
[1722355227312,1.10162929,66349.0,66348.0,0.001913]
[1722355227522,1.10162929,66349.0,66348.0,0.064013]
[1722355228157,1.10162929,66349.0,66348.0,0.001913]
[1722355230831,0.49875729,66349.0,66348.0,0.001913]
[1722355231035,0.47575729,66349.0,66348.0,0.001913]
[1722355231471,0.77719329,66349.0,66348.0,0.001913]
[1722355231894,0.47575729,66349.0,66348.0,0.001913]
[1722355232095,0.47575729,66349.0,66348.0,0.01102681]
[1722355232303,0.02360329,66349.0,66348.0,0.079313]
[1722355232503,0.17431929,66350.0,66348.0,0.08842681]
[1722355232733,0.02360329,66349.0,66348.0,0.08842681]
[1722355233131,0.17432129,66349.0,66348.0,0.08842681]
[1722355233445,0.02360329,66349.0,66348.0,0.08842681]
[1722355234281,0.17432129,66349.0,66348.0,0.08842681]
[1722355235129,0.02360329,66349.0,66348.0,0.08842681]
[1722355235350,0.02360329,66349.0,66348.0,0.60468681]
[1722355235550,0.37674716,66357.0,66350.0,0.150715]
[1722355235774,0.452114,66355.0,66351.0,0.150713]
[1722355235915,0.150705,66355.0,66351.0,0.15980761]
[1722355237219,0.174309,66354.0,66351.0,0.00909561]
[1722355237421,0.023602,66353.0,66351.0,0.00909561]
[1722355237791,0.304409,66355.0,66351.0,0.00909561]
[1722355237792,0.174309,66354.0,66351.0,0.00909561]
[1722355238019,0.023602,66353.0,66348.0,0.443852]
[1722355238224,0.452128,66353.0,66352.0,0.00909074]
[1722355238350,0.150712,66352.0,66348.0,0.293133]
[1722355238560,0.150709,66353.0,66349.0,0.150717]
[1722355238941,0.174313,66352.0,66349.0,0.150717]
[1722355239156,0.150711,66352.0,66349.0,0.150717]
[1722355239500,0.07534716,66350.0,66348.0,0.142413]
[1722355239680,0.07534716,66350.0,66348.0,0.065013]
[1722355239681,0.452154,66349.0,66348.0,0.065013]
[1722355239885,0.77719392,66349.0,66348.0,0.000913]
[1722355240087,1.07862992,66349.0,66348.0,0.000913]
[1722355240618,1.10162992,66349.0,66348.0,0.000913]
[1722355242447,1.10162992,66349.0,66348.0,0.003913]
[1722355243652,1.10019799,66349.0,66348.0,0.003913]
[1722355243831,1.69719454,66349.0,66348.0,0.003913]
[1722355244031,1.83669454,66349.0,66348.0,0.003913]
[1722355244230,1.97223959,66349.0,66348.0,0.003913]
[1722355244440,1.83669454,66349.0,66348.0,0.003913]
[1722355244640,1.71038438,66349.0,66348.0,0.003913]
[1722355245043,1.71038438,66349.0,66348.0,0.000913]
[1722355245542,2.03182038,66349.0,66348.0,0.000913]
[1722355245675,2.04182038,66349.0,66348.0,0.000913]
[1722355246025,2.03542166,66349.0,66348.0,0.001913]
[1722355246165,2.19551593,66349.0,66348.0,0.001913]
[1722355246364,2.17251593,66349.0,66348.0,0.000913]
[1722355246570,2.17251593,66349.0,66348.0,0.001913]
[1722355246571,2.17551593,66349.0,66348.0,0.001913]
[1722355246769,1.72338561,66349.0,66348.0,0.001913]
[1722355247843,2.04482161,66349.0,66348.0,0.001913]
[1722355249446,2.01542166,66349.0,66348.0,0.001913]
[1722355249655,2.02482156,66349.0,66348.0,0.001913]
[1722355250445,1.71338556,66349.0,66348.0,0.001913]
[1722355250648,1.65328556,66349.0,66348.0,0.001913]
[1722355252261,1.12181652,66349.0,66348.0,0.001913]
[1722355252459,1.11241662,66349.0,66348.0,0.001913]
[1722355252660,0.49594341,66349.0,66348.0,0.065213]
[1722355252861,0.49594341,66349.0,66348.0,0.142913]
[1722355252862,0.32803992,66349.0,66348.0,0.142913]
[1722355253084,0.78019392,66349.0,66348.0,0.153587]
[1722355253335,0.47875792,66349.0,66348.0,0.153587]
[1722355253448,0.47875792,66349.0,66348.0,0.152587]
[1722355253449,0.47575792,66349.0,66348.0,0.152587]
[1722355253648,0.150718,66349.0,66348.0,0.152587]
[1722355253855,0.452154,66349.0,66348.0,0.152587]
[1722355254485,0.150718,66349.0,66348.0,0.152587]
[1722355254932,0.52750116,66349.0,66348.0,0.152587]
[1722355255084,0.85254002,66349.0,66348.0,0.152587]
[1722355255302,0.85254002,66349.0,66348.0,0.141913]
[1722355255546,0.24966802,66349.0,66348.0,0.15258187]
[1722355255743,0.24966802,66349.0,66348.0,0.15558187]
[1722355256363,0.55110402,66349.0,66348.0,0.15558187]
[1722355257041,0.22606516,66349.0,66348.0,0.15558187]
[1722355257261,0.09895005,66349.0,66348.0,0.15558187]
[1722355257394,0.07534716,66349.0,66348.0,0.15558187]
[1722355257595,0.22606516,66349.0,66348.0,0.15558187]
[1722355257800,0.52750116,66349.0,66348.0,0.15558187]
[1722355258204,0.55110418,66349.0,66348.0,0.15558187]
[1722355258807,0.55110418,66349.0,66348.0,0.144913]
[1722355259798,0.55110418,66349.0,66348.0,0.15558187]
[1722355260605,0.24966818,66349.0,66348.0,0.15558187]
[1722355260806,0.02360302,66349.0,66348.0,0.30630187]
[1722355261014,0.02360302,66355.0,66351.0,0.150712]
[1722355261222,0.0015542,66356.0,66355.0,0.452113]
[1722355261394,0.0015542,66356.0,66355.0,1.05015504]
[1722355261596,0.0015542,66356.0,66355.0,1.4923712]
[1722355262224,0.0015542,66356.0,66355.0,1.8037802]
[1722355262433,0.07534716,66376.0,66371.0,0.1429]
[1722355262651,0.07534716,66376.0,66371.0,0.293567]
[1722355262652,0.150659,66375.0,66371.0,0.293567]
[1722355262831,0.150659,66375.0,66372.0,0.01048139]
[1722355263028,0.07534716,66376.0,66372.0,0.01048139]
[1722355263256,0.15066,66375.0,66372.0,0.01048139]
[1722355263456,0.37666116,66376.0,66372.0,0.01048139]
[1722355263658,0.150663,66373.0,66372.0,0.01048139]
[1722355264293,0.37666116,66376.0,66372.0,0.01048139]
[1722355264294,0.07534716,66376.0,66372.0,0.01048139]
[1722355264435,0.150659,66375.0,66372.0,0.01048139]
[1722355264636,0.22600416,66376.0,66372.0,0.16114639]
[1722355264931,0.37666116,66376.0,66372.0,0.01048139]
[1722355265143,0.150663,66373.0,66372.0,0.01048139]
[1722355265332,0.45199,66373.0,66372.0,0.01048139]
[1722355265647,0.150663,66373.0,66372.0,0.01048139]
[1722355266017,0.45199,66373.0,66372.0,0.01048139]
[1722355266218,0.753317,66373.0,66372.0,0.01148139]
[1722355266699,0.753317,66373.0,66372.0,0.006]
[1722355268836,1.199644,66373.0,66372.0,0.006]
[1722355269013,1.24624209,66373.0,66372.0,0.006]
[1722355269239,1.222644,66373.0,66372.0,0.006]
[1722355269384,1.157944,66373.0,66372.0,0.006]
[1722355269585,1.18154241,66373.0,66372.0,0.006]
[1722355269786,1.48286941,66373.0,66372.0,0.006]
[1722355269986,1.48286941,66373.0,66357.0,0.0602]
[1722355269987,0.301383,66361.0,66357.0,0.0602]
[1722355270278,0.07534716,66359.0,66357.0,0.0602]
[1722355270489,0.07534716,66359.0,66358.0,0.01057089]
[1722355270901,0.22604216,66359.0,66358.0,0.01057089]
[1722355271310,0.301375,66363.0,66358.0,0.01057089]
[1722355271514,0.150684,66364.0,66360.0,0.150692]
[1722355271641,0.301376,66363.0,66358.0,0.01057089]
[1722355271847,0.150689,66362.0,66361.0,0.01054583]
[1722355272047,0.150695,66359.0,66357.0,0.0602]
[1722355272253,0.07534716,66366.0,66357.0,0.0602]
[1722355272486,0.150685,66364.0,66360.0,0.150692]
[1722355272681,0.15069,66362.0,66357.0,0.0602]
[1722355272853,0.301373,66363.0,66358.0,0.159697]
[1722355273072,0.301373,66363.0,66358.0,0.009]
[1722355273073,0.150691,66361.0,66358.0,0.009]
[1722355273276,0.150691,66361.0,66358.0,0.150697]
[1722355273474,0.150689,66362.0,66359.0,0.150694]
[1722355273677,0.150687,66363.0,66359.0,0.150694]
[1722355274437,0.37670816,66366.0,66358.0,0.009]
[1722355274438,0.150695,66359.0,66358.0,0.009]
[1722355274640,0.52743216,66359.0,66358.0,0.009]
[1722355274945,0.82882216,66359.0,66358.0,0.009]
[1722355275560,0.452092,66358.0,66357.0,0.0602]
[1722355276310,0.150697,66358.0,66357.0,0.0602]
[1722355276507,0.07534716,66366.0,66358.0,0.014]
[1722355276508,0.30138,66362.0,66358.0,0.014]
[1722355276734,0.07534716,66366.0,66358.0,0.150696]
[1722355276941,0.150691,66361.0,66357.0,0.210899]
[1722355277256,0.150691,66361.0,66357.0,0.224899]
[1722355277457,0.301369,66364.0,66357.0,0.0742]
[1722355277661,0.150687,66363.0,66359.0,0.150695]
[1722355277859,0.150682,66365.0,66357.0,0.15041384]
[1722355278079,0.07534716,66366.0,66362.0,0.0663]
[1722355278259,0.37666016,66376.0,66368.0,0.301346]
[1722355278469,0.07534716,66376.0,66371.0,0.301335]
[1722355278642,0.07534716,66376.0,66370.0,0.0663]
[1722355278844,0.150659,66375.0,66372.0,0.0104757]
[1722355279045,0.07534716,66376.0,66371.0,0.01047902]
[1722355279246,0.07534716,66376.0,66374.0,0.150659]
[1722355279461,0.07534716,66376.0,66375.0,0.150659]
[1722355279674,0.07534716,66376.0,66375.0,0.01045311]
[1722355279853,0.07534716,66376.0,66375.0,0.16111211]
[1722355280226,0.07534716,66376.0,66375.0,0.01045311]
[1722355280604,0.22600316,66376.0,66375.0,0.01045311]
[1722355280738,0.07534716,66376.0,66372.0,0.150664]
[1722355280939,0.07534716,66376.0,66373.0,0.01046203]
[1722355280940,0.22600416,66376.0,66373.0,0.01046203]
[1722355281182,0.150661,66374.0,66373.0,0.01046203]
[1722355281385,0.451983,66374.0,66373.0,0.01046203]
[1722355281598,0.150665,66373.0,66370.0,0.0663]
[1722355281796,0.22600416,66376.0,66373.0,0.01046203]
[1722355281998,0.07534716,66376.0,66370.0,0.0663]
[1722355282243,0.150659,66375.0,66374.0,0.01045555]
[1722355282369,0.150659,66375.0,66371.0,0.150667]
[1722355282569,0.150661,66374.0,66373.0,0.008]
[1722355282765,0.150661,66374.0,66373.0,0.01846203]
[1722355282966,0.150661,66374.0,66373.0,0.01046203]
[1722355283223,0.150661,66374.0,66370.0,0.224969]
[1722355283437,0.753305,66374.0,66373.0,0.01046203]
[1722355283614,0.452004,66371.0,66370.0,0.0603]
[1722355284017,0.452004,66371.0,66370.0,0.07078146]
[1722355284828,0.75334,66371.0,66370.0,0.07078146]
[1722355285182,0.75334,66371.0,66370.0,0.01048146]
[1722355285183,1.54681006,66371.0,66370.0,0.01048146]
[1722355285389,1.54681006,66371.0,66357.0,0.0654]
[1722355285390,0.150697,66358.0,66357.0,0.0654]
[1722355285519,0.22604416,66358.0,66357.0,0.0654]
[1722355285723,0.22604416,66358.0,66357.0,0.07595465]
[1722355285945,0.52743916,66358.0,66357.0,0.01055465]
[1722355286171,0.150704,66355.0,66354.0,0.0601]
[1722355286381,0.452113,66355.0,66354.0,0.07067409]
[1722355286736,0.753522,66355.0,66354.0,0.07067409]
[1722355286941,0.753522,66355.0,66354.0,0.0601]
[1722355287771,0.3014,66357.0,66354.0,0.07067409]
[1722355287996,0.150704,66355.0,66354.0,0.07067409]
[1722355288399,0.452113,66355.0,66354.0,0.07067409]
[1722355288805,0.753522,66355.0,66354.0,0.01057409]
[1722355289021,1.161031,66355.0,66354.0,0.01057409]
[1722355289240,1.161031,66355.0,66348.0,0.000913]
[1722355289241,0.452154,66349.0,66348.0,0.000913]
[1722355289455,0.82893716,66349.0,66348.0,0.000913]
[1722355289693,1.13037316,66349.0,66348.0,0.000913]
[1722355289926,1.17697859,66349.0,66348.0,0.000913]
[1722355290127,1.47841459,66349.0,66348.0,0.000913]
[1722355290357,1.17697859,66349.0,66348.0,0.000913]
[1722355291556,1.17697859,66349.0,66348.0,0.007913]
[1722355292007,1.32761163,66349.0,66348.0,0.007913]
[1722355292212,1.60037279,66349.0,66348.0,0.007913]
[1722355292692,1.47701064,66349.0,66348.0,0.007913]
[1722355292886,1.25387859,66349.0,66348.0,0.000913]
[1722355293263,1.25587859,66349.0,66348.0,0.000913]
[1722355293677,1.26492567,66349.0,66348.0,0.000913]
[1722355293878,1.26292567,66349.0,66348.0,0.000913]
[1722355294082,1.26292567,66349.0,66348.0,0.002913]
[1722355297293,1.91243728,66349.0,66348.0,0.002913]
[1722355297496,1.92183617,66349.0,66348.0,0.002913]
[1722355297814,1.92183657,66349.0,66348.0,0.002913]
[1722355297942,1.487858,66349.0,66348.0,0.002913]
[1722355298142,1.41355871,66349.0,66348.0,0.002913]
[1722355298390,1.33665871,66349.0,66348.0,0.002913]
[1722355298859,1.18602567,66349.0,66348.0,0.002913]
[1722355301675,0.09895259,66349.0,66348.0,0.002913]
[1722355301912,0.150718,66349.0,66348.0,0.01357504]
[1722355302082,0.150718,66349.0,66348.0,0.002913]
[1722355302289,0.75359,66349.0,66348.0,0.01357504]
[1722355302487,0.75359,66349.0,66348.0,0.002913]
[1722355302488,1.055026,66349.0,66348.0,0.002913]
[1722355303177,1.078026,66349.0,66348.0,0.002913]
[1722355303408,0.77659,66349.0,66348.0,0.002913]
[1722355304415,0.77742,66349.0,66348.0,0.002913]
[1722355306028,1.078856,66349.0,66348.0,0.002913]
[1722355306228,1.10246155,66349.0,66348.0,0.002913]
[1722355306437,1.078856,66349.0,66348.0,0.002913]
[1722355306663,1.10246163,66349.0,66348.0,0.002913]
[1722355306868,0.80102563,66349.0,66348.0,0.002913]
[1722355307926,1.10246163,66349.0,66348.0,0.002913]
[1722355308127,1.39749467,66349.0,66348.0,0.002913]
[1722355309975,1.39744467,66349.0,66348.0,0.002913]
[1722355310406,1.71827976,66349.0,66348.0,0.002913]
[1722355311133,1.70827976,66349.0,66348.0,0.002913]
[1722355311538,1.71827976,66349.0,66348.0,0.002913]
[1722355311742,1.85879268,66349.0,66348.0,0.002913]
[1722355312528,1.85879311,66349.0,66348.0,0.002913]
[1722355312929,2.16022911,66349.0,66348.0,0.002913]
[1722355313110,2.19022911,66349.0,66348.0,0.000913]
[1722355313309,2.29022911,66349.0,66348.0,0.000913]
[1722355313515,2.29122911,66349.0,66348.0,0.001913]
[1722355313929,2.29122911,66349.0,66338.0,0.000913]
[1722355313930,1.505664,66339.0,66338.0,0.000913]
[1722355314130,1.76464935,66339.0,66338.0,0.000913]
[1722355314576,1.78764935,66339.0,66338.0,0.000913]
[1722355315572,1.78765039,66339.0,66338.0,0.000913]
[1722355316154,1.78765039,66339.0,66338.0,0.003913]
[1722355316405,1.93834471,66339.0,66338.0,0.003913]
[1722355318775,1.92894415,66339.0,66338.0,0.003913]
[1722355318980,1.93834471,66339.0,66338.0,0.003913]
[1722355320548,1.55390267,66339.0,66338.0,0.003913]
[1722355320923,1.56330282,66339.0,66338.0,0.003913]
[1722355321937,1.57249503,66339.0,66338.0,0.003913]
[1722355322918,1.27101403,66339.0,66338.0,0.003913]
[1722355323131,0.80949984,66339.0,66338.0,0.003913]
[1722355323335,0.80949984,66339.0,66338.0,0.064313]
[1722355323336,0.1736968,66339.0,66338.0,0.064313]
[1722355323558,0.7766588,66339.0,66338.0,0.064313]
[1722355323939,0.4751778,66339.0,66338.0,0.07506012]
[1722355324340,0.7766588,66339.0,66338.0,0.064313]
[1722355324450,0.7766588,66339.0,66338.0,0.07506012]
[1722355324653,0.4751778,66339.0,66338.0,0.064313]
[1722355325108,0.02360563,66339.0,66338.0,0.37654612]
[1722355325310,0.02360563,66339.0,66338.0,0.30160312]
[1722355325513,0.150734,66342.0,66338.0,0.30160212]
[1722355325731,0.02360594,66341.0,66339.0,0.15074]
[1722355325947,0.00149373,66348.0,66340.0,0.150736]
[1722355326151,0.150729,66344.0,66341.0,0.0615]
[1722355326373,0.30145,66346.0,66341.0,0.07222767]
[1722355326374,0.150734,66342.0,66341.0,0.07222767]
[1722355326579,0.47580776,66342.0,66341.0,0.07222767]
[1722355326913,0.47680776,66342.0,66341.0,0.07222767]
[1722355327117,0.02360576,66342.0,66341.0,0.0615]
[1722355327320,0.17433976,66342.0,66341.0,0.08021743]
[1722355327524,0.47580776,66342.0,66341.0,0.08021743]
[1722355327681,0.47580776,66342.0,66341.0,0.0615]
[1722355328184,0.47580776,66342.0,66341.0,0.07221743]
[1722355328629,0.17433976,66342.0,66341.0,0.07221743]
[1722355328899,0.47580776,66342.0,66341.0,0.07221743]
[1722355329102,0.77727576,66342.0,66341.0,0.0615]
[1722355329273,0.77727576,66342.0,66341.0,0.0715]
[1722355329473,0.77727576,66342.0,66341.0,0.08221743]
[1722355329859,0.47580776,66342.0,66341.0,0.08221743]
[1722355330246,0.77727576,66342.0,66341.0,0.08221743]
[1722355330441,0.77727576,66342.0,66341.0,0.0715]
[1722355331060,1.07874376,66342.0,66341.0,0.0715]
[1722355331335,1.36778589,66342.0,66341.0,0.01]
[1722355331573,1.66925389,66342.0,66341.0,0.01]
[1722355331687,2.1229213,66342.0,66341.0,0.01]
[1722355331870,2.12292196,66342.0,66341.0,0.01]
[1722355332275,2.12276727,66342.0,66341.0,0.01]
[1722355333108,2.12276727,66342.0,66338.0,0.000913]
[1722355333109,1.356664,66339.0,66338.0,0.000913]
[1722355333308,1.77944818,66339.0,66338.0,0.000913]
[1722355333790,1.56314818,66339.0,66338.0,0.000913]
[1722355333985,1.11103414,66339.0,66338.0,0.062413]
[1722355334192,1.10163407,66339.0,66338.0,0.062413]
[1722355334548,1.10163407,66339.0,66338.0,0.000913]
[1722355334760,1.11103391,66339.0,66338.0,0.000913]
[1722355334898,1.11103406,66339.0,66338.0,0.000913]
[1722355335095,1.111034,66339.0,66338.0,0.000913]
[1722355335728,1.11103405,66339.0,66338.0,0.000913]
[1722355336998,1.12020463,66339.0,66338.0,0.000913]
[1722355338083,1.78861867,66339.0,66338.0,0.000913]
[1722355338297,1.79861867,66339.0,66338.0,0.000913]
[1722355338518,1.94231867,66339.0,66338.0,0.000913]
[1722355338892,1.93231867,66339.0,66338.0,0.000913]
[1722355339308,1.87161867,66339.0,66338.0,0.000913]
[1722355340091,2.00717258,66339.0,66338.0,0.000913]
[1722355340341,2.02231299,66339.0,66338.0,0.000913]
[1722355341472,2.03431299,66339.0,66338.0,0.000913]
[1722355341601,2.02431299,66339.0,66338.0,0.000913]
[1722355341800,2.01491301,66339.0,66338.0,0.000913]
[1722355342007,2.02631356,66339.0,66338.0,0.000913]
[1722355342404,2.16185689,66339.0,66338.0,0.000913]
[1722355342965,2.03631356,66339.0,66338.0,0.000913]
[1722355343323,2.02631356,66339.0,66338.0,0.000913]
[1722355344169,2.16185795,66339.0,66338.0,0.000913]
[1722355345046,2.02631396,66339.0,66338.0,0.000913]
[1722355345209,2.16185078,66339.0,66338.0,0.000913]
[1722355345469,2.17185078,66339.0,66338.0,0.000913]
[1722355347262,2.16185078,66339.0,66338.0,0.000913]
[1722355347694,2.02631396,66339.0,66338.0,0.000913]
[1722355348175,2.03631396,66339.0,66338.0,0.000913]
[1722355348417,2.05631387,66339.0,66338.0,0.000913]
[1722355348672,2.35779487,66339.0,66338.0,0.000913]
[1722355350351,2.35779487,66339.0,66334.0,0.000913]
[1722355350352,1.987544,66335.0,66334.0,0.000913]
[1722355350622,0.970105,66330.0,66329.0,0.000913]
[1722355350854,0.970105,66330.0,66321.0,0.009328]
[1722355350855,0.150779,66322.0,66321.0,0.009328]
[1722355351088,1.48086887,66322.0,66321.0,0.009328]
[1722355351252,1.80542787,66322.0,66321.0,0.009328]
[1722355351711,1.80542983,66322.0,66321.0,0.009328]
[1722355351898,1.26194293,66322.0,66321.0,0.009328]
[1722355352111,0.80975089,66322.0,66321.0,0.070128]
[1722355352315,0.80034807,66322.0,66321.0,0.070128]
[1722355353490,0.80234807,66322.0,66321.0,0.070128]
[1722355354170,1.11310847,66322.0,66321.0,0.070128]
[1722355354422,1.11310847,66322.0,66321.0,0.009328]
[1722355354423,1.37505236,66322.0,66321.0,0.009328]
[1722355354617,1.38445531,66322.0,66321.0,0.009328]
[1722355354817,1.38445514,66322.0,66321.0,0.009328]
[1722355355013,1.38445517,66322.0,66321.0,0.009328]
[1722355355576,1.27314432,66322.0,66321.0,0.009328]
[1722355355931,1.57470332,66322.0,66321.0,0.009328]
[1722355356133,1.79100332,66322.0,66321.0,0.009328]
[1722355357006,1.80100332,66322.0,66321.0,0.009328]
[1722355357148,1.79100332,66322.0,66321.0,0.009328]
[1722355357330,1.94169764,66322.0,66321.0,0.009328]
[1722355357982,1.93229483,66322.0,66321.0,0.009328]
[1722355358200,2.08720697,66322.0,66321.0,0.009328]
[1722355358382,2.07718368,66322.0,66321.0,0.009328]
[1722355358582,1.94169801,66322.0,66321.0,0.009328]
[1722355361965,1.79100369,66322.0,66321.0,0.009328]
[1722355364656,1.7910034,66322.0,66321.0,0.009328]
[1722355364803,1.5747034,66322.0,66321.0,0.009328]
[1722355367164,1.7910034,66322.0,66321.0,0.009328]
[1722355367918,1.79100371,66322.0,66321.0,0.009328]
[1722355368299,1.94169803,66322.0,66321.0,0.009328]
[1722355368872,1.48944471,66322.0,66321.0,0.009328]
[1722355371073,1.48944451,66322.0,66321.0,0.009328]
[1722355371787,1.79100351,66322.0,66321.0,0.009328]
[1722355373598,1.85110351,66322.0,66321.0,0.009328]
[1722355373801,1.93320351,66322.0,66321.0,0.009328]
[1722355374001,2.08389783,66322.0,66321.0,0.009328]
[1722355374209,2.08389844,66322.0,66321.0,0.009328]
[1722355374422,2.09389842,66322.0,66321.0,0.009328]
[1722355374625,2.08389842,66322.0,66321.0,0.009328]
[1722355375940,2.09389842,66322.0,66321.0,0.009328]
[1722355376354,2.22933588,66322.0,66321.0,0.009328]
[1722355376734,2.21933588,66322.0,66321.0,0.009328]
[1722355377411,2.07449483,66322.0,66321.0,0.009328]
[1722355377613,2.21941121,66322.0,66321.0,0.009328]
[1722355377823,2.08389844,66322.0,66321.0,0.009328]
[1722355378445,2.11814887,66322.0,66321.0,0.009328]
[1722355378809,2.12814887,66322.0,66321.0,0.009328]
[1722355379008,2.11814887,66322.0,66321.0,0.009328]
[1722355379994,2.25365939,66322.0,66321.0,0.009328]
[1722355380396,2.11814887,66322.0,66321.0,0.009328]
[1722355380595,1.57470412,66322.0,66321.0,0.073428]
[1722355380804,1.56530051,66322.0,66321.0,0.073428]
[1722355381020,1.25014456,66322.0,66321.0,0.073428]
[1722355381223,1.25014456,66322.0,66321.0,0.153228]
[1722355381224,0.48719212,66322.0,66321.0,0.153228]
[1722355381429,0.78875112,66322.0,66321.0,0.16413227]
[1722355381777,1.09031012,66322.0,66321.0,0.153228]
[1722355381989,0.78875112,66322.0,66321.0,0.153228]
[1722355382951,1.09031012,66322.0,66321.0,0.153228]
[1722355383278,0.78875112,66322.0,66321.0,0.153228]
[1722355383466,1.11331012,66322.0,66321.0,0.073428]
[1722355383986,1.25058453,66322.0,66321.0,0.073428]
[1722355384211,1.39181452,66322.0,66321.0,0.073428]
[1722355384421,1.4012169,66322.0,66321.0,0.073428]
[1722355384987,1.7027759,66322.0,66321.0,0.009328]
[1722355385374,1.4012169,66322.0,66321.0,0.009328]
[1722355386804,1.26394249,66322.0,66321.0,0.009328]
[1722355387453,1.55609911,66322.0,66321.0,0.009328]
[1722355387665,1.26394281,66322.0,66321.0,0.009328]
[1722355388579,1.39958094,66322.0,66321.0,0.009328]
[1722355389071,1.26394281,66322.0,66321.0,0.009328]
[1722355390245,1.41463713,66322.0,66321.0,0.009328]
[1722355390677,1.41463689,66322.0,66321.0,0.009328]
[1722355391936,1.55033292,66322.0,66321.0,0.009328]
[1722355392135,1.26394257,66322.0,66321.0,0.153528]
[1722355392566,0.81175053,66322.0,66321.0,0.153528]
[1722355394123,0.81175004,66322.0,66321.0,0.153528]
[1722355394547,0.48719104,66322.0,66321.0,0.153528]
[1722355394758,0.48719104,66322.0,66321.0,0.16442997]
[1722355394759,0.78875004,66322.0,66321.0,0.16442997]
[1722355394878,0.78875004,66322.0,66321.0,0.153528]
[1722355395281,1.09030904,66322.0,66321.0,0.153528]
[1722355395629,1.11330904,66322.0,66321.0,0.153528]
[1722355397305,1.11330905,66322.0,66321.0,0.073828]
[1722355399984,1.41139362,66322.0,66321.0,0.073828]
[1722355400184,1.41139362,66322.0,66321.0,0.009328]
[1722355400386,1.54719867,66322.0,66321.0,0.009328]
[1722355400595,1.54720823,66322.0,66321.0,0.009328]
[1722355400843,1.40199164,66322.0,66321.0,0.009328]
[1722355400999,1.84876884,66322.0,66321.0,0.009328]
[1722355401398,1.71295305,66322.0,66321.0,0.009328]
[1722355402283,1.79315305,66322.0,66321.0,0.009328]
[1722355402489,1.94594582,66322.0,66321.0,0.009328]
[1722355403052,1.79315305,66322.0,66321.0,0.009328]
[1722355403227,1.94595917,66322.0,66321.0,0.009328]
[1722355403956,1.78375064,66322.0,66321.0,0.009328]
[1722355404159,1.79315399,66322.0,66321.0,0.009328]
[1722355404337,1.94595858,66322.0,66321.0,0.009328]
[1722355405390,1.94595844,66322.0,66321.0,0.009328]
[1722355406636,1.79315385,66322.0,66321.0,0.009328]
[1722355407260,1.94595513,66322.0,66321.0,0.009328]
[1722355407460,1.83638679,66322.0,66321.0,0.009328]
[1722355407719,1.80315385,66322.0,66321.0,0.009328]
[1722355407857,1.79315385,66322.0,66321.0,0.009328]
[1722355408369,1.79115385,66322.0,66321.0,0.009328]
[1722355408597,1.79615385,66322.0,66321.0,0.009328]
[1722355409116,1.79115385,66322.0,66321.0,0.009328]
[1722355409363,2.03064445,66322.0,66321.0,0.009328]
[1722355409987,2.03564445,66322.0,66321.0,0.010328]
[1722355410188,1.88285385,66322.0,66321.0,0.010328]
[1722355410390,2.04564113,66322.0,66321.0,0.010328]
[1722355410538,2.18441315,66322.0,66321.0,0.010328]
[1722355410739,2.20824184,66322.0,66321.0,0.010328]
[1722355410941,2.22764547,66322.0,66321.0,0.010328]
[1722355411511,2.21764547,66322.0,66321.0,0.010328]
[1722355412006,2.22764547,66322.0,66321.0,0.010328]
[1722355412672,2.22764547,66322.0,66317.0,0.000913]
[1722355412673,1.668673,66318.0,66317.0,0.000913]
[1722355413005,2.0272079,66318.0,66317.0,0.000913]
[1722355413232,2.0372079,66318.0,66317.0,0.000913]
[1722355413825,2.01780427,66318.0,66317.0,0.000913]
[1722355414023,2.03220843,66318.0,66317.0,0.001913]
[1722355414237,2.18290275,66318.0,66317.0,0.001913]
[1722355414448,2.19290275,66318.0,66317.0,0.001913]
[1722355414840,2.19290275,66318.0,66294.0,0.0302]
[1722355414841,0.247499,66313.0,66305.0,0.0607]
[1722355415043,1.20448154,66313.0,66305.0,0.0607]
[1722355415243,1.93067954,66313.0,66305.0,0.0607]
[1722355415563,2.05198227,66313.0,66305.0,0.0607]
[1722355415897,1.75038327,66313.0,66305.0,0.0607]
[1722355416393,1.75838327,66313.0,66312.0,0.010328]
[1722355416548,1.75038327,66313.0,66312.0,0.009328]
[1722355416743,2.05381031,66313.0,66312.0,0.009328]
[1722355417072,1.89967343,66313.0,66312.0,0.010328]
[1722355417251,1.9090784,66313.0,66312.0,0.010328]
[1722355417654,2.2106774,66313.0,66312.0,0.010328]
[1722355418002,2.2306774,66313.0,66312.0,0.010328]
[1722355418172,1.521502,66303.0,66296.0,0.0653]
[1722355418375,2.10498324,66303.0,66296.0,0.0653]
[1722355419201,2.23508324,66303.0,66296.0,0.0653]
[1722355420419,2.23508456,66303.0,66296.0,0.0653]
[1722355420651,2.38069399,66303.0,66296.0,0.0653]
[1722355420863,2.49577888,66303.0,66296.0,0.0653]
[1722355421793,0.150847,66292.0,66291.0,0.0652]
[1722355421992,0.9377274,66292.0,66291.0,0.0652]
[1722355422110,1.67012799,66292.0,66291.0,0.01186294]
[1722355422321,0.75425,66291.0,66290.0,0.009328]
[1722355422528,1.83328756,66291.0,66290.0,0.009328]
[1722355422722,2.00698188,66291.0,66290.0,0.009328]
[1722355423651,2.00698333,66291.0,66290.0,0.009328]
[1722355423865,2.30868333,66291.0,66290.0,0.009328]
[1722355424465,2.31868333,66291.0,66290.0,0.009328]
[1722355424664,2.30868333,66291.0,66290.0,0.009328]
[1722355426122,2.33868333,66291.0,66290.0,0.009328]
[1722355426301,2.43868333,66291.0,66290.0,0.009328]
[1722355426523,2.41868333,66291.0,66290.0,0.009328]
[1722355426867,2.42368388,66291.0,66290.0,0.009328]
[1722355427060,2.41868388,66291.0,66290.0,0.009328]
[1722355427622,2.12798388,66291.0,66290.0,0.010328]
[1722355427826,1.056076,66283.0,66282.0,0.023267]
[1722355428027,1.44650904,66283.0,66282.0,0.023267]
[1722355428229,1.74824504,66283.0,66282.0,0.023267]
[1722355428863,1.77187637,66283.0,66282.0,0.023267]
[1722355429319,1.74824504,66283.0,66282.0,0.023267]